[Event "Commonwealth CC-Open 2024"]
[Site "Malacca"]
[Date "2024.02.21"]
[Round "1.1"]
[White "Sethuraman, S.P."]
[Black "Siddharth, Sai"]
[Result "1-0"]
[ECO "D38"]
[WhiteElo "2594"]
[BlackElo "1760"]
[Annotator "TA"]
[PlyCount "101"]
[EventDate "2024.02.21"]
[EventCountry "MAS"]
[SourceTitle "playchess.com"]
[Source "ChessBase"]
[SourceQuality "1"]
[TimeControl "5400+30"]

{[%evp 17,101,27,45,43,41,14,0,4,56,58,44,52,53,63,57,48,84,72,93,54,148,105,154,163,160,159,149,139,133,137,137,143,135,134,149,144,146,126,169,162,211,206,203,204,258,247,254,261,252,222,235,177,176,183,368,339,485,485,456,471,464,451,519,493,711,704,768,750,2131,2039,1977,710,1319,0,2487,2494,1508,727,5265,5257,5085,4450,4890,2764,6414,6413]} 1. d4 {[%emt 0:00:35]} Nf6 {[%emt 0:00:29]} 2. c4 {[%emt 0:00:30]} e6 {[%emt 0:00:06]} 3. Nc3 {[%emt 0:01:06]} d5 {[%emt 0:00:04]} 4. Nf3 {[%emt 0:00:22]} Bb4 {[%emt 0:01:07]} 5. Bg5 {[%emt 0:01:38]} O-O {[%emt 0:01:54]} 6. e3 {[%emt 0:00:12]} c5 {[%emt 0:07:59]} 7. cxd5 {[%emt 0:00:50]} exd5 {[%emt 0:04:59]} 8. dxc5 {[%emt 0:00:06]} Nbd7 {[%emt 0:05:57]} 9. Rc1 {[%emt 0:02:43]} Qa5 {[%emt 0:05:01]} 10. Nd2 {[%emt 0:01:03]} Qxc5 {[%emt 0:20:26]} 11. a3 {[%emt 0:05:33]} (11. Nb3 {seems wilder.} Qb6 12. Be2 Ne4 13. Qxd5 Re8 14. Bf4) 11... Bxc3 {[%emt 0:01:30]} 12. Rxc3 {[%emt 0:00:05] The position is equal.} Qe7 {[%emt 0:01:28]} ({Black should try} 12... Qb6 $11) 13. Be2 {[%emt 0:01:22]} h6 {[%emt 0:01:37]} 14. Bh4 {[%emt 0:01:02]} Ne5 {[%emt 0:05:18]} 15. O-O {[%emt 0:01:05]} Bf5 {[%emt 0:02:33]} 16. Nb3 {[%emt 0:03:33]} Rfd8 {[%emt 0:03:23]} 17. Nd4 {[%emt 0:00:25] Black is now going downhill.} Be6 {[%emt 0:04:00]} 18. Qc2 {[%emt 0:37:06]} a6 {[%emt 0:08:37]} ({Black should play} 18... Rac8 $14) 19. Rc1 {[%emt 0:02:24]} Ng6 {[%emt 0:03:50]} (19... Nc4 $142 20. Bd3 Bd7 21. Bxc4 dxc4) 20. Rc7 $16 {[%emt 0:02:30] White is more active.} Rd7 {[%emt 0:00:18]} 21. Bxf6 {[%emt 0:00:52]} Qxf6 {[%emt 0:01:06]} 22. Rxd7 {[%emt 0:00:14]} Bxd7 {[%emt 0:00:33]} 23. Qb3 {[%emt 0:00:04][%csl LRb7,LRd5]} Rc8 {[%emt 0:07:22]} 24. Rxc8+ {[%emt 0:01:02]} Bxc8 {[%emt 0:00:40]} 25. Qxd5 {[%emt 0:00:05]} Qb6 {[%emt 0:00:31]} 26. h3 {[%emt 0:06:37]} Qc7 {[%emt 0:00:58]} 27. Qc4 {[%emt 0:01:47]} Qd8 {[%emt 0:02:58]} 28. Qc5 {[%emt 0:00:44]} b6 {[%emt 0:01:20] Black is weak on the light squares} (28... a5 $142 29. Nb5 b6) 29. Qc6 $18 {[%emt 0:00:31]} Ne7 {[%emt 0:02:12] [#]} 30. Qa8 {[%emt 0:00:49]} Qd5 {[%emt 0:00:08] [#]} 31. Qb8 {[%emt 0:00:55]} Qb7 {[%emt 0:00:53]} 32. Qd6 {[%emt 0:00:21]} b5 {[%emt 0:01:17]} 33. Qd8+ {[%emt 0:06:02]} Kh7 {[%emt 0:00:04]} 34. Bd3+ {[%emt 0:05:20]} g6 {[%emt 0:00:30]} 35. Qf8 {[%emt 0:00:18]} Nd5 $2 {[%emt 0:00:54]} (35... Nf5 36. Bxf5 Bxf5) 36. Be4 {[%emt 0:00:37]} Be6 {[%emt 0:01:02]} (36... Qe7 $142 37. Bxg6+ (37. Bxd5 $2 {perishes.} Qxf8 38. Bb3 Qc5 $19) (37. Qxc8 Qxe4 38. Qc6 Kg7 $18) 37... fxg6 38. Qxc8 Qd6) 37. Nxe6 {[%emt 0:00:28]} fxe6 {[%emt 0:00:10][%mdl 4096] Endgame. KQB-KQN} 38. Qe8 {[%emt 0:00:18][%csl LRe6,LRg6] Inhibits Qd7.} Qg7 {[%emt 0:00:53]} 39. Qxe6 {[%emt 0:00:21]} Nc7 {[%emt 0:00:03]} 40. Qc6 {[%emt 0:00:11]} a5 {[%emt 0:00:07] [#]} (40... Qf7 $142 41. Bxg6+ Qxg6 42. Qxc7+ Kh8 43. Qd8+ Kg7) 41. Bxg6+ $1 {[%emt 0:00:11][%mdl 512]} Kh8 {[%emt 0:00:08]} (41... Qxg6 42. Qxc7+) 42. Qd6 {[%emt 0:00:47]} a4 {[%emt 0:00:23]} 43. Qd8+ {[%emt 0:00:07]} Qg8 {[%emt 0:00:03]} 44. Qf6+ {[%emt 0:00:26]} Qg7 {[%emt 0:00:01]} 45. Qd8+ {[%emt 0:00:06]} Qg8 {[%emt 0:00:02]} 46. Qxc7 {[%emt 0:00:04] White is clearly winning.} Qxg6 {[%emt 0:00:02]} 47. Qe5+ {[%emt 0:00:06]} Kh7 {[%emt 0:00:08]} 48. Qxb5 {[%emt 0:00:11]} Qb1+ {[%emt 0:00:03]} 49. Kh2 {[%emt 0:00:06]} Qc2 {[%emt 0:00:02]} 50. f4 {[%emt 0:00:08]} Qe4 {[%emt 0:00:08]} 51. Qe5 {[%emt 0:00:08] Weighted Error Value: White=0.25 (precise) /Black=0.35.  Mistake:       	---       	Black=7      Inaccurate:     	White=2     	Black=2      OK:         	White=17    	Black=12     Best:        	White=2     	Black=1} 1-0

[Event "Commonwealth CC-Open 2024"]
[Site "Malacca"]
[Date "2024.02.21"]
[Round "1.2"]
[White "Aminuddin, Muhd Faqih"]
[Black "Vaibhav, Suri"]
[Result "0-1"]
[ECO "A09"]
[WhiteElo "1753"]
[BlackElo "2596"]
[Annotator "TA"]
[PlyCount "60"]
[EventDate "2024.02.21"]
[EventCountry "MAS"]
[SourceTitle "playchess.com"]
[Source "ChessBase"]
[SourceQuality "1"]
[TimeControl "5400+30"]

{[%evp 10,60,8,5,13,0,1,0,23,-17,-1,-125,-111,-112,-66,-94,-77,-92,-58,-96,-95,-93,0,-5,-35,-54,-61,-47,-68,-81,0,-5,-30,-8,0,-48,-62,-116,0,-87,-83,-86,-79,-77,-79,-92,-99,-144,-143,-203,-206,-204,-197]} 1. Nf3 {[%emt 0:00:47]} d5 {[%emt 0:00:15]} 2. c4 {[%emt 0:00:22]} d4 {[%emt 0:00:14]} 3. b4 {[%emt 0:00:49]} c5 {[%emt 0:00:14]} 4. e3 {[%emt 0:00:40]} dxe3 {[%emt 0:01:11]} 5. fxe3 {[%emt 0:00:36]} cxb4 {[%emt 0:00:04]} 6. d4 {[%emt 0:01:34]} Nf6 {[%emt 0:00:02]} 7. Bd3 {[%emt 0:02:00]} Bg4 {[%emt 0:00:25]} 8. O-O {[%emt 0:04:18]} e5 {[%emt 0:01:18] Strongly threatening ...e4. The position is equal.} 9. dxe5 {[%emt 0:10:31]} Nfd7 {[%emt 0:00:37]} 10. Qa4 {[%emt 0:02:00]} (10. Nbd2 $11) 10... Nc6 $17 {[%emt 0:06:34]} 11. Be4 {[%emt 0:05:07]} Qc7 {[%emt 0:03:16]} (11... Bxf3 $17 12. Bxf3 Ndxe5 (12... Ncxe5 13. Bxb7 Rb8 14. Bb2 $15)) 12. Bb2 {[%emt 0:08:14]} Bc5 {[%emt 0:07:25]} 13. Nbd2 {[%emt 0:15:57]} O-O {[%emt 0:08:37][%cal Rc6e5]} 14. Qc2 {[%emt 0:11:05]} Bxe3+ {[%emt 0:03:42]} 15. Kh1 {[%emt 0:00:18]} g6 {[%emt 0:00:31] Black is more active.} (15... Ncxe5 $6 16. Bxh7+ Kh8 17. Nxe5 Nxe5 18. Rae1 Bxd2 19. Qxd2 (19. Rxe5 Rad8 $15) (19. Bxe5 Qd7 $11) 19... Kxh7 (19... Nxc4 20. Bxg7+ Kxg7 21. Qg5+ Kh8 22. Qf6+ Kxh7 23. Qh4+ Kg8 24. Qxg4+ Kh7 25. Rf5) 20. Rxe5 Qxc4 21. Ree1 $11) (15... h6 $1 $17 16. Rae1 Bf4) 16. Rae1 {[%emt 0:04:48]} Bh6 {[%emt 0:01:28]} 17. e6 {[%emt 0:03:04]} Bxe6 {[%emt 0:04:20]} 18. Bxg6 $1 {[%emt 0:00:45]} fxg6 {[%emt 0:01:50]} (18... hxg6 {is more complex.} 19. Rxe6 Nc5 20. Rxg6+ fxg6 21. Qxg6+ Bg7) 19. Rxe6 {[%emt 0:00:18]} Bg7 {[%emt 0:11:59] Wards off Rxg6} (19... Nc5 $17 20. Re2 Rad8) 20. Bxg7 $11 {[%emt 0:09:47]} Kxg7 {[%emt 0:00:02]} 21. c5 $132 {[%emt 0:03:17][%mdl 2048] White is not holding back} Rae8 {[%emt 0:05:16]} 22. Rxe8 {[%emt 0:06:28]} (22. Qb2+ $11 Kh6 23. Rxe8 (23. Re4 Rxe4 24. Nxe4 Qf4 $15) 23... Rxe8 24. Nd4 Nxd4 (24... Nxc5 $2 {is the wrong capture.} 25. Nf5+ Kg5 26. Qc1 $18) 25. Qxd4 Nxc5 (25... Qxc5 $2 26. Qxd7 Qe7 27. Qd4 $18) 26. Qxb4) 22... Rxe8 $15 {[%emt 0:00:01]} 23. Qb2+ {[%emt 0:01:28] [#]} (23. Ng5 $1 $15 Nd8 24. Nde4) 23... Kh6 {[%emt 0:05:04]} ({Better is} 23... Nf6 $1 $17 {aiming for ...Qf4.} 24. Nc4 Qf4) 24. g4 {[%emt 0:03:51] [#]} (24. Ng5 $11 {remains equal.} Kxg5 25. Qg7) 24... Nce5 $1 $17 {[%emt 0:11:04]} (24... Nxc5 25. Qf6 b6 26. Nh4 $18) 25. g5+ {[%emt 0:03:53]} Kg7 {[%emt 0:00:02] Threatens to win with ...a5.} 26. Qxb4 {[%emt 0:00:46]} Qc6 {[%emt 0:02:56]} 27. Qc3 {[%emt 0:00:33]} Qxc5 {[%emt 0:11:01]} 28. Qxc5 {[%emt 0:00:37]} Nxc5 {[%emt 0:00:01] Black is clearly better.} 29. Rf2 {[%emt 0:00:36]} (29. Re1 $17 Nxf3 30. Rxe8 Nxd2 31. Re7+ Kg8 32. h4) 29... Ned3 $19 {[%emt 0:03:26]} 30. Rg2 {[%emt 0:00:15]} b5 {[%emt 0:00:48] Weighted Error Value: White=0.27 (precise) /Black=0.19 (very precise) .  Mistake:       	White=5     	Black=4      Inaccurate:     	White=4     	Black=1      OK:         	White=5     	Black=10     Best:        	White=3     	Black=1      Strong:       	White=1     	Black=1} 0-1

[Event "Commonwealth CC-Open 2024"]
[Site "Malacca"]
[Date "2024.02.21"]
[Round "1.3"]
[White "Tin, Jingyao"]
[Black "Chong, Hao Ern"]
[Result "1-0"]
[ECO "D20"]
[WhiteElo "2563"]
[BlackElo "1691"]
[Annotator "TA"]
[PlyCount "37"]
[EventDate "2024.02.21"]
[EventCountry "MAS"]
[SourceTitle "playchess.com"]
[Source "ChessBase"]
[SourceQuality "1"]
[TimeControl "5400+30"]

{[%evp 9,37,81,66,62,84,62,71,77,65,79,70,70,66,74,73,71,66,65,76,67,202,141,639,629,608,558,553,522,674,677]} 1. d4 {[%emt 0:00:21]} d5 {[%emt 0:00:04]} 2. c4 {[%emt 0:00:18]} dxc4 {[%emt 0:00:07]} 3. e4 {[%emt 0:01:42]} b5 {[%emt 1:31:49]} 4. a4 {[%emt 0:00:30]} c6 {[%emt 0:00:00]} 5. axb5 {[%emt 0:01:01]} cxb5 {[%emt 0:00:00]} 6. Nc3 $1 {[%emt 0:00:11]} Qb6 {[%emt 0:00:00]} 7. Nd5 {[%emt 0:01:17]} Qb7 {[%emt 0:00:00]} 8. Bf4 {[%emt 0:00:28] [#] Black must now prevent Nc7+. White is better.} e5 {[%emt 0:00:00]} 9. Bxe5 {[%emt 0:00:51]} Nd7 {[%emt 0:00:00]} 10. Bf4 {[%emt 0:00:23] aiming for f3. White has more active pieces.} ({Avoid the trap} 10. Nc7+ $2 Kd8 11. Be2 Nxe5 12. Nxa8 Bb4+ 13. Kf1 Ng6 $17) 10... Ngf6 {[%emt 0:00:00]} 11. Nc7+ {[%emt 0:02:43]} Kd8 {[%emt 0:00:00]} 12. Nxa8 {[%emt 0:00:06][%cal Of2f3] [#] Hoping for f3!} Qxe4+ {[%emt 0:00:00]} 13. Ne2 {[%emt 0:00:10]} Qxa8 {[%emt 0:00:00]} 14. Nc3 $36 {[%emt 0:00:11][%cal Of1e2][%mdl 2048] Be2! would now be deadly. White has some pressure.} Qc6 {[%emt 0:00:00]} (14... a6 $14) 15. Rxa7 {[%emt 0:06:42]} b4 $2 {[%emt 0:00:00][%mdl 8192] A mistake that costs the game.} (15... Bb7 $16) 16. Bc7+ $18 {[%emt 0:14:16] White is clearly winning.} Ke8 {[%emt 0:06:30]} 17. Qe2+ {[%emt 0:00:51]} Be7 {[%emt 0:00:00]} 18. Qxc4 {[%emt 0:00:51]} Qxc4 {[%emt 0:00:00]} 19. Bxc4 {[%emt 0:00:02] Weighted Error Value: White=0.14 (very precise) /Black=0.74.  Loses game:     	---       	Black=1      Mistake:       	---       	Black=1      Inaccurate:     	White=1     	---        OK:         	White=5     	Black=5      Best:        	White=3     	Black=4} 1-0

[Event "Commonwealth CC-Open 2024"]
[Site "Malacca"]
[Date "2024.02.21"]
[Round "1.4"]
[White "Chong, Jin Cheng"]
[Black "Mitrabha, Guha"]
[Result "0-1"]
[ECO "C03"]
[WhiteElo "1706"]
[BlackElo "2504"]
[Annotator "TA"]
[PlyCount "56"]
[EventDate "2024.02.21"]
[EventCountry "MAS"]
[SourceTitle "playchess.com"]
[Source "ChessBase"]
[SourceQuality "1"]
[TimeControl "5400+30"]

{[%evp 9,56,-12,4,-9,15,12,12,10,33,29,31,44,57,46,50,56,61,50,106,13,41,34,20,-25,0,-21,-19,-22,-19,-85,-16,-118,-15,-21,-28,-80,47,54,52,-420,-401,-421,-416,-522,-520,-507,-512,-662,-648]} 1. e4 {[%emt 0:00:18]} e6 {[%emt 0:00:23]} 2. d4 {[%emt 0:00:18]} d5 {[%emt 0:00:01]} 3. Nd2 {[%emt 0:00:48]} a6 {[%emt 0:00:06]} 4. e5 {[%emt 0:06:01]} c5 {[%emt 0:00:21]} 5. c3 {[%emt 0:00:55]} Nc6 {[%emt 0:00:02]} 6. Ndf3 {[%emt 0:07:41]} Qa5 {[%emt 0:03:34]} 7. a3 {[%emt 0:03:55]} c4 {[%emt 0:01:13]} 8. b4 {[%emt 0:03:39] The position is equal.} cxb3 {[%emt 0:00:16]} 9. Qxb3 {[%emt 0:04:13]} Bd7 {[%emt 0:00:50]} 10. Bd3 {[%emt 0:00:25][%cal Og1e2]} (10. Qxb7 $2 Qxc3+ (10... Rb8 $2 11. Qxb8+ Nxb8 12. Bd2 $19) 11. Kd1 Rb8 $19) 10... Qc7 {[%emt 0:00:27]} 11. a4 {[%emt 0:03:52]} Nge7 {[%emt 0:02:09]} 12. Ne2 {[%emt 0:03:41]} Na5 {[%emt 0:00:33]} 13. Qb1 {[%emt 0:02:47][%cal Oc1a3]} h6 {[%emt 0:01:21]} (13... Rb8 $14) 14. h4 {[%emt 0:04:11]} (14. Ba3 $1 $16) 14... Nc4 {[%emt 0:01:12]} 15. h5 {[%emt 0:01:48]} Nc6 {[%emt 0:00:14]} 16. g4 {[%emt 0:01:09]} O-O-O {[%emt 0:04:29]} 17. Nh4 {[%emt 0:09:08]} Be7 {[%emt 1:21:49]} 18. f4 {[%emt 0:02:27]} Rdf8 {[%emt 0:00:00]} 19. f5 {[%emt 0:12:41]} (19. Qc2 $11) 19... Bg5 {[%emt 0:00:00]} (19... Bxh4+ $1 $17 20. Rxh4 f6 21. Bxc4 dxc4 22. fxe6 Bxe6) 20. Nf4 {[%emt 0:10:41] [#]} (20. Ng2 $11) 20... N6xe5 {[%emt 0:00:00]} 21. dxe5 $11 {[%emt 0:00:41]} Nxe5 {[%emt 0:00:00] And now ...Bxh4+ would win.} 22. Be2 {[%emt 0:02:47] [#]} (22. Nhg2 $11) 22... Nxg4 {[%emt 0:00:00] Black is more active.} 23. Bxg4 $14 {[%emt 0:04:54]} Bxf4 {[%emt 0:00:00]} 24. Qd3 $2 {[%emt 0:01:22][%mdl 8192] [#] This move loses the game for White.} (24. Bxf4 $14 {is the one way to stay ahead.} Qxf4 25. Qb4 Qe3+ 26. Kf1 exf5 27. Re1 (27. Rh3 Qg5 $18)) 24... Bxc1 $1 $19 {[%emt 0:00:00]} 25. Rxc1 {[%emt 0:00:50]} Qf4 {[%emt 0:00:00]} ({Weaker is} 25... Bxa4 26. Qd4 (26. fxe6 fxe6 27. Ng6 Rf4 $11) 26... Bb5 27. Kf2 $14 (27. Qxg7 $2 {too greedy.} Qg3+ 28. Kd1 Qd3+ 29. Ke1 Qe3+ 30. Kd1 Ba4+ 31. Rc2 Qd3+ 32. Ke1 Qe4+ 33. Re2 Qxh1+ $19) (27. fxe6 fxe6 28. Bxe6+ Kb8 $17)) 26. Qd1 {[%emt 0:00:34]} Bxa4 {[%emt 0:00:00] Black is clearly winning.} 27. Qd2 {[%emt 0:03:10]} Qxg4 {[%emt 0:00:00]} 28. c4 {[%emt 0:00:08]} d4 {[%emt 0:00:00] Weighted Error Value: White=0.73/Black=0.24 (precise) .  Loses game:     	White=1     	---        Mistake:       	White=4     	Black=4      Inaccurate:     	White=1     	Black=1      OK:         	White=5     	Black=5      Best:        	---       	Black=1      Strong:       	---       	Black=1} (28... Qxh5 $2 29. cxd5+ Kb8 30. Qf4+ Ka8 31. Qxa4 $17) 0-1

[Event "Commonwealth CC-Open 2024"]
[Site "Malacca"]
[Date "2024.02.21"]
[Round "1.5"]
[White "Vignesh N R"]
[Black "Cairel Adrin, Rumi Arjuna Malique"]
[Result "1-0"]
[ECO "D37"]
[WhiteElo "2517"]
[BlackElo "1666"]
[Annotator "TA"]
[PlyCount "117"]
[EventDate "2024.02.21"]
[EventCountry "MAS"]
[SourceTitle "playchess.com"]
[Source "ChessBase"]
[SourceQuality "1"]
[TimeControl "5400+30"]

{[%evp 12,116,35,35,53,43,46,37,45,31,105,32,43,37,31,19,32,43,45,17,88,78,96,45,53,49,45,46,40,39,32,35,72,78,80,55,79,70,87,70,85,70,85,51,40,43,139,141,141,89,146,143,136,91,95,86,106,100,102,113,97,103,164,177,172,111,247,241,309,306,323,313,297,302,381,354,602,588,730,730,689,682,670,663,845,822,1121,1087,29969,1183,29984,29985,29985,29986,29987,29988,29988,29989,29989,29989,29989,29990,29990,29991,29991,29992,29999]} 1. d4 {[%emt 0:01:21]} Nf6 {[%emt 0:01:02]} 2. c4 {[%emt 0:00:46]} e6 {[%emt 0:00:14]} 3. Nf3 {[%emt 0:00:28]} d5 {[%emt 0:01:21]} 4. Nc3 {[%emt 0:01:15]} Be7 {[%emt 0:00:53]} 5. Bf4 {[%emt 0:00:24]} c6 {[%emt 0:06:02]} 6. e3 {[%emt 0:00:21]} Nbd7 {[%emt 0:01:55]} 7. Bd3 {[%emt 0:02:18]} h6 {[%emt 0:02:09]} 8. O-O {[%emt 0:00:37]} Nh5 {[%emt 0:03:23]} 9. Be5 {[%emt 0:01:05]} O-O {[%emt 0:05:26] White is slightly better.} 10. Qc2 {[%emt 0:02:31]} f6 {[%emt 0:10:34]} (10... Nhf6 $14) 11. Bg3 {[%emt 0:04:53]} (11. cxd5 $1 $16 cxd5 12. Bf4 Nxf4 13. exf4) 11... Nxg3 $14 {[%emt 0:03:15]} 12. hxg3 {[%emt 0:00:06]} f5 {[%emt 0:01:59]} 13. cxd5 {[%emt 0:00:31]} cxd5 {[%emt 0:00:14]} 14. Rfc1 {[%emt 0:02:56]} a6 {[%emt 0:09:59]} 15. Rab1 {[%emt 0:01:22]} b6 {[%emt 0:05:07]} (15... Nf6 $11) 16. Ne2 $16 {[%emt 0:01:30] And now Qc6 would win.} Nf6 {[%emt 0:05:22]} 17. Qc7 {[%emt 0:03:04]} (17. Nf4 $16) 17... Bd6 {[%emt 0:02:38]} 18. Qxd8 {[%emt 0:00:27]} Rxd8 {[%emt 0:00:05]} 19. Rc6 {[%emt 0:00:55]} Rb8 {[%emt 0:10:06]} 20. Rbc1 {[%emt 0:03:01]} g5 {[%emt 0:04:14]} 21. Ne5 {[%emt 0:05:28]} Kf8 {[%emt 0:02:36][%cal Bg8f8,Bf8e7,Be7f7][%mdl 32]} 22. f3 $1 {[%emt 0:02:24]} Ke7 {[%emt 0:03:50]} 23. Kf2 {[%emt 0:01:58] White has more active pieces.} Rg8 {[%emt 0:06:26]} 24. R6c3 {[%emt 0:07:55] aiming for Nc6+.} Ra8 {[%emt 0:03:15]} 25. Nc6+ {[%emt 0:55:24] A dynamic duo of knights.} Kf7 {[%emt 0:01:37]} 26. a4 {[%emt 0:00:00][%cal Og3g4]} Nd7 {[%emt 0:01:15]} 27. e4 {[%emt 0:00:00]} fxe4 {[%emt 0:05:04]} 28. fxe4 {[%emt 0:00:00][%cal Bf3e4,Be4e5][%mdl 32]} Bb7 {[%emt 0:00:59]} (28... dxe4 $14 29. Bxe4 Bb7) 29. e5 {[%emt 0:00:00]} Be7 {[%emt 0:00:10]} 30. Bh7 {[%emt 0:00:00]} ({White should play} 30. Nxe7 Kxe7 31. Rc7) 30... Rge8 {[%emt 0:02:12]} (30... Rg7 $142) 31. Nxe7 {[%emt 0:00:00]} Kxe7 {[%emt 0:00:03]} 32. Rh1 {[%emt 0:00:00]} Rh8 {[%emt 0:00:29]} 33. Bg6 {[%emt 0:00:00]} Rac8 {[%emt 0:00:28] Prevents Rc7} 34. Rf3 $36 {[%emt 0:00:00][%mdl 2048] White is on the roll.} Rcf8 {[%emt 0:00:13]} 35. Ke3 {[%emt 0:00:00]} Bc6 {[%emt 0:00:22]} 36. b3 {[%emt 0:00:00]} Rxf3+ {[%emt 0:00:32]} (36... Nb8 $16 {was necessary.} 37. Bd3 Rf7) 37. gxf3 $18 {[%emt 0:00:00]} b5 {[%emt 0:00:16] [#]} 38. Rc1 {[%emt 0:00:00]} (38. a5 $1 $18) 38... Rc8 {[%emt 0:00:13] Black cannot hold the game after this.} (38... Nb8 $16) 39. Bd3 {[%emt 0:00:00]} Nb6 {[%emt 0:00:46]} 40. a5 {[%emt 0:00:00]} Nd7 {[%emt 0:00:08]} 41. Rh1 {[%emt 0:00:00]} Rh8 {[%emt 0:00:07]} 42. f4 {[%emt 0:00:00]} gxf4+ {[%emt 0:00:38]} 43. Nxf4 {[%emt 0:00:00] Threatens to win with Ng6+.} Nf8 {[%emt 0:00:56]} (43... Kf7 44. Be2 Nf8) 44. g4 {[%emt 0:00:00]} Be8 {[%emt 0:00:43]} 45. g5 {[%emt 0:00:00]} h5 {[%emt 0:00:32]} 46. g6 {[%emt 0:00:00]} Rg8 {[%emt 0:00:50]} 47. Rg1 {[%emt 0:00:00]} (47. Nxh5 Bxg6 48. Nf6 Rg7 $18) 47... Nd7 {[%emt 0:01:13]} 48. g7 {[%emt 0:00:00] Bh7 would now be deadly.} Bf7 {[%emt 0:00:25]} 49. Bh7 {[%emt 0:00:00]} Nb8 {[%emt 0:00:17] [#]} 50. Nxh5 $1 {[%emt 0:00:00][%mdl 512]} Nd7 {[%emt 0:00:13]} (50... Rc8 51. g8=Q) 51. Bxg8 {[%emt 0:00:00] White mates.} Bxg8 {[%emt 0:00:05] KRN-KBN} 52. Rc1 {[%emt 0:00:00]} Kf7 {[%emt 0:00:27]} 53. Rc7 {[%emt 0:00:00]} Kg6 {[%emt 0:00:13]} 54. Rxd7 {[%emt 0:00:00]} Kxh5 {[%emt 0:00:10]} 55. Rd8 {[%emt 0:00:00]} Bf7 {[%emt 0:00:05]} 56. g8=Q {[%emt 0:00:00]} Bxg8 {[%emt 0:00:07]} 57. Rxg8 {[%emt 0:00:00]} Kh4 {[%emt 0:00:06]} 58. Kf4 {[%emt 0:00:00][%cal Rg8h8]} b4 {[%emt 0:00:03]} 59. Rh8# {[%emt 0:00:00] Weighted Error Value: White=0.09 (flawless) /Black=0.48.  Mistake:       	White=4     	Black=7      Inaccurate:     	White=3     	Black=1      OK:         	White=16    	Black=10     Best:        	White=2     	Black=2      Strong:       	White=1     	---} 1-0